bitfinex/quotes_SOLUSD_20250417
["timestamp","ask_amount","ask_price","bid_price","bid_amount"]
[1744897267263,0.063,132.73,132.71,30.54193058]
[1744897267557,0.063,132.73,132.72,7.53465943]
[1744897269544,0.063,132.73,132.72,38.07659001]
[1744897269752,0.063,132.73,132.72,64.36091315]
[1744897270470,0.063,132.73,132.72,33.676821]
[1744897270641,0.063,132.73,132.72,33.53465943]
[1744897270970,30.60493058,132.73,132.7,0.14216157]
[1744897271143,30.60493058,132.73,132.69,30.54193058]
[1744897271348,30.54193058,132.7,132.66,7.53806723]
[1744897271563,30.54193058,132.7,132.66,38.07999781]
[1744897272659,30.54193058,132.7,132.66,7.53806723]
[1744897273667,30.54193058,132.72,132.67,30.54193058]
[1744897273864,82.863,132.73,132.71,30.54193058]
[1744897274040,0.063,132.73,132.7,30.54193058]
[1744897274666,0.063,132.73,132.7,38.07748628]
[1744897274959,0.063,132.73,132.72,106.01783316]
[1744897275336,30.54193058,132.81,132.73,18.933972]
[1744897275542,30.54193058,132.81,132.76,30.54193058]
[1744897275750,30.54193058,132.79,132.75,30.54193058]
[1744897276065,30.54193058,132.79,132.74,30.54193058]
[1744897276240,30.54193058,132.79,132.75,30.54193058]
[1744897276445,18.64964886,132.81,132.75,30.54193058]
[1744897276740,38.07205106,132.8,132.75,30.54193058]
[1744897277058,38.07205106,132.8,132.75,38.07474922]
[1744897277467,38.07160753,132.81,132.77,30.54193058]
[1744897277846,7.52967695,132.81,132.77,30.54193058]
[1744897278046,38.07160753,132.81,132.77,30.54193058]
[1744897278262,38.07160753,132.81,132.76,30.54193058]
[1744897278566,38.07160753,132.81,132.77,30.54193058]
[1744897278866,7.52967695,132.81,132.77,30.54193058]
[1744897279061,38.07160753,132.81,132.77,30.54193058]
[1744897279559,7.52967695,132.81,132.77,38.07366586]
[1744897280665,89.6446,132.82,132.77,30.54193058]
[1744897280864,7.59112705,132.84,132.8,30.54193058]
[1744897281163,30.54193058,132.81,132.76,16.94]
[1744897281346,81.989,132.83,132.76,16.94]
[1744897281347,30.54193058,132.79,132.76,16.94]
[1744897282047,81.989,132.83,132.76,16.94]
[1744897282267,7.52898659,132.82,132.76,16.94]
[1744897282444,30.54193058,132.8,132.76,16.94]
[1744897283162,30.54193058,132.79,132.74,38.0754058]
[1744897284543,30.54193058,132.78,132.74,30.54193058]
[1744897284743,7.53116777,132.79,132.74,30.54193058]
[1744897284744,38.07309835,132.79,132.74,7.53350332]
[1744897284960,7.53116777,132.79,132.75,30.54193058]
[1744897285162,81.989,132.8,132.78,30.54193058]
[1744897285552,81.989,132.8,132.77,30.54193058]
[1744897285874,30.54193058,132.82,132.77,30.54193058]
[1744897285875,38.07116822,132.82,132.77,30.54193058]
[1744897286766,38.07116822,132.82,132.77,38.07357863]
[1744897287065,18.71264886,132.84,132.79,30.54193058]
[1744897287066,0.063,132.84,132.79,30.54193058]
[1744897287264,30.60493058,132.84,132.8,30.54193058]
[1744897287469,7.59096572,132.84,132.8,30.54193058]
[1744897287658,0.063,132.84,132.8,30.54193058]
[1744897287969,0.063,132.84,132.82,30.54193058]
[1744897288355,0.063,132.84,132.83,30.54193058]
[1744897288759,0.063,132.84,132.83,38.07035036]
[1744897289162,0.063,132.84,132.83,38.3546735]
[1744897289366,0.063,132.84,132.83,57.00432236]
[1744897289751,0.063,132.86,132.85,26.0]
[1744897289956,0.063,132.86,132.85,56.54193058]
[1744897290153,0.063,132.86,132.85,56.82625372]
[1744897290750,0.063,132.86,132.85,64.35354013]
[1744897292078,0.063,132.86,132.85,83.00318899]
[1744897292262,0.063,132.86,132.85,119.72771957]
[1744897292688,0.063,132.86,132.85,89.18578899]
[1744897294989,0.063,132.86,132.85,83.00318899]
[1744897295981,0.063,132.86,132.84,30.54193058]
[1744897296479,0.063,132.86,132.84,38.06978282]
[1744897296673,0.063,132.86,132.85,30.54193058]
[1744897296984,0.063,132.86,132.84,30.54193058]
[1744897297173,0.063,132.86,132.85,30.54193058]
[1744897297382,0.063,132.86,132.83,33.52826464]
[1744897297383,0.063,132.86,132.84,30.82625372]
[1744897297756,0.063,132.86,132.84,7.8120531]
[1744897297962,0.063,132.86,132.84,30.82625372]
[1744897298294,0.063,132.86,132.84,0.28432314]
[1744897298475,0.063,132.86,132.84,30.82625372]
[1744897298783,0.063,132.86,132.83,30.54193058]
[1744897298965,30.60493058,132.86,132.82,16.94]
[1744897299590,0.063,132.86,132.82,47.48193058]
[1744897299767,0.063,132.86,132.82,24.46881066]
[1744897299964,0.063,132.86,132.83,30.82625372]
[1744897300169,0.063,132.86,132.84,30.54193058]
[1744897300581,0.063,132.86,132.83,30.54193058]
[1744897300782,0.063,132.86,132.82,47.48193058]
[1744897301085,0.063,132.86,132.82,16.94]
[1744897301086,30.54193058,132.85,132.82,16.94]
[1744897301285,0.063,132.86,132.82,47.48193058]
[1744897301661,30.60493058,132.86,132.82,47.48193058]
[1744897301879,0.063,132.86,132.82,55.01077663]
[1744897302286,0.063,132.86,132.83,30.82625372]
[1744897303193,0.063,132.86,132.83,0.28432314]
[1744897303485,0.063,132.86,132.82,55.01077663]
[1744897303692,30.60493058,132.86,132.82,47.48193058]
[1744897303891,30.60493058,132.86,132.82,16.94]
[1744897304189,7.52728641,132.85,132.82,16.94]
[1744897304567,38.13190815,132.86,132.82,16.94]
[1744897304782,7.58997757,132.86,132.82,55.01081756]
[1744897304988,0.063,132.86,132.84,30.54193058]
[1744897305371,0.063,132.86,132.85,30.82625372]
[1744897306474,0.063,132.86,132.82,16.94]
[1744897306673,0.063,132.86,132.83,30.54193058]
[1744897307771,0.063,132.86,132.84,30.54193058]
[1744897308372,0.063,132.86,132.85,30.54193058]
[1744897309272,0.063,132.86,132.85,19.02392497]
[1744897309473,0.063,132.86,132.85,19.30824811]
[1744897310385,0.063,132.86,132.85,26.83553452]
[1744897310895,0.063,132.86,132.85,0.28432314]
[1744897311067,0.063,132.86,132.85,19.30824811]
[1744897311470,0.063,132.86,132.85,26.83553452]
[1744897312500,0.063,132.89,132.86,0.28432314]
[1744897312684,0.063,132.89,132.88,19.02392497]
[1744897313590,0.063,132.89,132.87,16.68]
[1744897314078,0.063,132.89,132.87,35.70392497]
[1744897314280,0.063,132.89,132.88,19.02392497]
[1744897314598,0.063,132.89,132.88,26.54951196]
[1744897315297,0.063,132.89,132.88,26.8338351]
[1744897316285,0.063,132.89,132.88,71.48348396]
[1744897317283,0.063,132.92,132.89,0.28432314]
[1744897317478,0.063,132.92,132.91,19.02392497]
[1744897317685,0.063,132.92,132.91,37.95789697]
[1744897318402,0.063,132.92,132.91,19.30824811]
[1744897318602,0.063,132.92,132.91,26.83213645]
[1744897318787,0.063,132.92,132.89,0.14216157]
[1744897319110,0.063,132.92,132.9,19.02392497]
[1744897320305,0.063,132.92,132.91,19.30824811]
[1744897320500,0.063,132.92,132.9,19.02392497]
[1744897320805,0.063,132.92,132.89,26.54854973]
[1744897321205,0.063,132.92,132.88,35.98824811]
[1744897321407,19.08692497,132.92,132.88,16.68]
[1744897321704,19.08692497,132.92,132.88,43.22943548]
[1744897321910,0.063,132.92,132.89,19.02392497]
[1744897322118,0.063,132.92,132.9,19.02392497]
[1744897322417,0.063,132.92,132.91,19.02392497]
[1744897323115,0.063,132.92,132.91,26.83213645]
[1744897325694,0.063,132.92,132.91,45.48178531]
[1744897328213,0.063,132.92,132.91,26.45786034]
[1744897328420,0.063,132.92,132.91,45.48178531]
[1744897330429,0.063,132.92,132.88,16.5]
[1744897330724,0.063,132.92,132.89,19.02392497]
[1744897330930,0.063,132.92,132.88,35.52392497]
[1744897331130,0.063,132.92,132.89,19.02392497]
[1744897331333,0.063,132.92,132.91,19.02392497]
[1744897331509,0.063,132.92,132.91,19.30824811]
[1744897332027,0.063,132.92,132.91,37.95789697]
[1744897332430,0.063,132.92,132.91,45.48178531]
[1744897332933,0.063,132.98,132.97,19.02392497]
[1744897333538,0.063,132.98,132.96,19.02392497]
[1744897334219,0.063,132.98,132.97,26.54441831]
[1744897335748,0.063,132.98,132.97,26.82874145]
[1744897336931,0.063,132.98,132.96,0.28432314]
[1744897337137,0.063,132.98,132.97,19.30824811]
[1744897337636,0.063,132.98,132.97,26.82874145]
[1744897339248,0.063,132.98,132.97,0.28432314]
[1744897339453,0.063,132.98,132.97,26.82874145]
[1744897339745,0.063,132.98,132.97,0.28432314]
[1744897340147,0.063,132.98,132.96,26.54487229]
[1744897340454,0.063,132.98,132.96,0.14216157]
[1744897340624,19.08692497,132.98,132.94,16.5]
[1744897340830,19.08692497,132.98,132.94,43.04590534]
[1744897341649,19.08692497,132.98,132.94,16.5]
[1744897341950,19.08692497,132.98,132.94,43.04604694]
[1744897342252,0.063,132.98,132.95,19.30824811]
[1744897342734,0.063,132.98,132.96,19.02392497]
[1744897343449,0.063,132.98,132.95,19.30824811]
[1744897343855,0.063,132.98,132.95,26.82955142]
[1744897344060,0.063,132.98,132.96,19.02392497]
[1744897346355,0.063,132.98,132.96,26.54492385]
[1744897346856,0.063,132.98,132.97,0.28432314]
[1744897347157,0.063,132.98,132.97,19.30824811]
[1744897348043,0.063,132.98,132.97,26.82874145]
[1744897348655,0.063,132.98,132.97,45.47839031]
[1744897350752,0.063,132.98,132.97,0.28432314]
[1744897351168,0.063,132.98,132.97,7.66265491]
[1744897351478,0.063,132.98,132.97,7.80481648]
[1744897351646,0.063,132.98,132.97,71.47839031]
[1744897351846,1e-08,132.99,132.98,44.933972]
[1744897352047,1e-08,132.99,132.98,63.95789697]
[1744897352282,1e-08,132.99,132.98,71.47782477]
[1744897353576,1e-08,132.99,132.94,42.80763285]
[1744897353749,19.02392498,132.99,132.95,19.02392497]
[1744897354253,19.02392498,132.99,132.94,69.02611543]
[1744897354754,19.02392497,132.96,132.94,16.48]
[1744897355147,19.02392497,132.98,132.94,24.00207354]
[1744897355369,19.02392497,132.98,132.94,50.00207354]
[1744897355876,19.02392497,132.98,132.94,24.00207354]
[1744897356368,19.02392497,132.98,132.94,50.00207354]
[1744897356957,1e-08,132.99,132.95,19.30824811]
[1744897357349,19.02392497,132.98,132.95,0.28432314]
[1744897358567,26.54390882,132.98,132.94,16.48]
[1744897358771,19.02392497,132.97,132.94,16.48]
[1744897358962,7.51998385,132.98,132.94,16.48]
[1744897359164,19.02392497,132.98,132.94,16.48]
[1744897359469,19.02392497,132.98,132.94,24.00199904]
[1744897359782,19.02392497,132.98,132.94,16.48]
[1744897359979,26.54366563,132.99,132.94,43.02598915]
[1744897360163,26.54366563,132.99,132.97,19.02392497]
[1744897360164,1e-08,132.99,132.97,19.02392497]
[1744897360362,1e-08,132.99,132.98,19.30824811]
[1744897360548,1e-08,132.99,132.98,26.82817591]
[1744897360749,1e-08,132.99,132.98,0.28432314]
[1744897361565,1e-08,132.99,132.96,7.52083817]
[1744897361772,1e-08,132.99,132.97,0.28432314]
[1744897362071,1e-08,132.99,132.97,19.30824811]
[1744897362979,1e-08,132.99,132.97,0.28432314]
[1744897363585,1e-08,132.99,132.97,26.82857444]
[1744897363959,1e-08,132.99,132.96,19.02392497]
[1744897364275,1e-08,132.99,132.96,0.28432314]
[1744897364490,1e-08,132.99,132.96,19.30824811]
[1744897364665,1e-08,132.99,132.96,0.28432314]
[1744897364985,1e-08,132.99,132.96,7.80492641]
[1744897366177,1e-08,132.99,132.96,26.82885138]
[1744897367092,1e-08,132.99,132.97,19.02392497]
[1744897367270,1e-08,132.99,132.98,19.30824811]
[1744897368366,1e-08,132.99,132.98,37.95789697]
[1744897369077,1e-08,132.99,132.98,45.47782477]
[1744897369859,1e-08,132.99,132.98,26.82817591]
[1744897370468,1e-08,132.99,132.98,45.47782477]
[1744897371784,1e-08,132.99,132.98,26.82817591]
[1744897371985,1e-08,132.99,132.98,7.5199278]
[1744897372311,1e-08,132.99,132.97,7.52001046]
[1744897372484,1e-08,132.99,132.97,26.54393543]
[1744897373782,1e-08,132.99,132.98,19.30824811]
[1744897374003,1e-08,132.99,132.98,0.28432314]
[1744897375778,1e-08,132.99,132.96,52.54472019]
[1744897375979,1e-08,132.99,132.98,19.02392497]
[1744897376382,1e-08,132.99,132.98,19.30824811]
[1744897377116,1e-08,132.99,132.98,26.82817591]
[1744897378015,1e-08,132.99,132.97,26.54416539]
[1744897378722,1e-08,132.99,132.98,19.02392497]
[1744897378897,1e-08,132.99,132.98,19.30824811]
[1744897379102,1e-08,132.99,132.98,26.82817591]
[1744897379813,19.02392498,132.99,132.96,42.36]
[1744897380009,19.02392498,132.99,132.96,16.36]
[1744897380413,1.64500001,132.99,132.96,16.36]
[1744897380814,1.64500001,132.99,132.96,23.88091496]
[1744897381014,1.64500001,132.99,132.97,0.28432314]
[1744897381224,1e-08,132.99,132.97,0.28432314]
[1744897381800,1e-08,132.99,132.97,19.30824811]
[1744897382223,1e-08,132.99,132.97,0.28432314]
[1744897382732,1e-08,132.99,132.98,37.95789697]
[1744897382945,1e-08,132.99,132.98,45.47782477]
[1744897384226,1e-08,132.99,132.98,7.80425094]
[1744897384395,1e-08,132.99,132.98,26.82817591]
[1744897385910,1e-08,132.99,132.98,7.80425094]
[1744897386221,1e-08,132.99,132.98,26.82817591]
[1744897388849,1e-08,132.99,132.98,7.80425094]
[1744897389011,1e-08,132.99,132.98,26.82817591]
[1744897390239,1e-08,132.99,132.98,7.80425094]
[1744897390544,1e-08,132.99,132.98,26.82817591]
[1744897394445,1e-08,132.99,132.98,45.47782477]
[1744897397052,0.063,133.04,133.01,26.0]
[1744897397233,0.063,133.04,133.03,37.67357383]
[1744897397428,0.063,133.04,133.03,37.8157354]
[1744897397737,0.063,133.04,133.03,37.95789697]
[1744897398134,0.063,133.04,133.03,45.47499837]
[1744897399648,1e-08,133.04,133.03,45.47499837]
[1744897401039,0.063,133.06,133.05,26.0]
[1744897401241,0.063,133.06,133.05,45.30824811]
[1744897402239,0.03,133.07,133.06,0.28432314]
[1744897402557,0.063,133.12,133.07,18.933972]
[1744897402857,1e-08,133.09,133.08,54.31789697]
[1744897404232,1e-08,133.09,133.08,61.83217409]
[1744897404657,0.063,133.12,133.08,61.83217409]
[1744897404658,1e-08,133.11,133.1,44.933972]
[1744897404887,0.063,133.14,133.13,44.64964886]
[1744897405048,0.063,133.14,133.13,99.32182194]
[1744897405354,1.5494,133.22,133.17,26.0]
[1744897405557,1.5494,133.22,133.19,19.02392497]
[1744897406055,1.5494,133.22,133.18,16.34]
[1744897406259,1.5494,133.22,133.18,35.36392497]
[1744897406430,1.5494,133.22,133.19,19.02392497]
[1744897406634,1.5494,133.22,133.2,19.02392497]
[1744897406840,1.5494,133.22,133.18,23.84849025]
[1744897407160,20.57332497,133.22,133.18,42.87241522]
[1744897407670,20.57332497,133.22,133.18,16.34]
[1744897407840,28.07978835,133.22,133.18,16.34]
[1744897408163,101.01292497,133.21,133.14,16.34]
[1744897408452,81.989,133.2,133.16,19.02392497]
[1744897408674,20.55442497,133.17,133.11,7.51238107]
[1744897408878,20.55442497,133.17,133.12,19.02392497]
[1744897409055,1.5305,133.17,133.13,19.02392497]
[1744897409250,1.5305,133.17,133.13,30.30674977]
[1744897409457,1.5305,133.17,133.15,30.30674977]
[1744897409658,1.5305,133.17,133.12,18.933972]
[1744897409875,1.5305,133.17,133.15,30.30674977]
[1744897410575,6.5833,133.19,133.16,30.30674977]
[1744897410779,6.5833,133.19,133.17,30.30674977]
[1744897410956,6.5833,133.19,133.16,30.30674977]
[1744897411679,1.5491,133.2,133.18,0.28432314]
[1744897411858,1.5491,133.2,133.18,30.30674977]
[1744897412059,1.5491,133.2,133.17,30.30674977]
[1744897413069,1.5491,133.2,133.18,30.30674977]
[1744897413449,49.07270082,133.22,133.1,100.7]
[1744897413656,119.80213019,133.22,133.18,30.30674977]
[1744897413864,100.74954618,133.26,133.2,30.30674977]
[1744897414080,37.8114402,133.25,133.21,30.30674977]
[1744897414255,30.30674977,133.24,133.2,30.30674977]
[1744897415082,7.50469043,133.25,133.2,30.30674977]
[1744897415284,30.30674977,133.24,133.2,30.30674977]
[1744897415461,30.30674977,133.24,133.2,37.81416767]
[1744897415862,30.30674977,133.25,133.21,30.59107291]
[1744897416081,9.05947982,133.27,133.22,16.52]
[1744897416284,30.30674977,133.25,133.22,16.52]
[1744897416464,7.50377982,133.27,133.22,16.52]
[1744897416787,7.50302559,133.28,133.23,0.28432314]
[1744897416960,37.80977536,133.28,133.22,16.52]
[1744897417160,30.30674977,133.25,133.21,0.28432314]
[1744897417362,30.30674977,133.25,133.22,16.52]
[1744897417576,30.30674977,133.25,133.23,16.52]
[1744897418062,30.30674977,133.24,133.21,16.80432314]
[1744897418262,30.30674977,133.24,133.21,24.31109096]
[1744897418463,30.30674977,133.24,133.21,16.80432314]
[1744897418665,6.2619,133.26,133.21,16.52]
[1744897418865,30.30674977,133.23,133.21,16.52]
[1744897419084,81.989,133.25,133.19,30.30674977]
[1744897419288,30.30674977,133.21,133.19,16.5]
[1744897419788,30.30674977,133.22,133.19,16.5]
[1744897419985,30.30674977,133.2,133.19,16.78432314]
[1744897420192,30.30674977,133.2,133.19,16.5]
[1744897420688,30.30674977,133.21,133.19,16.5]
[1744897421185,30.30674977,133.22,133.19,24.00803914]
[1744897421561,81.989,133.25,133.2,30.59107291]
[1744897421789,30.30674977,133.24,133.21,7.50694392]
[1744897422594,30.30674977,133.25,133.21,37.81369369]
[1744897422960,30.30674977,133.25,133.22,0.28432314]
[1744897423188,7.50423493,133.26,133.21,0.28432314]
[1744897423384,30.30674977,133.23,133.21,0.28432314]
[1744897423581,30.30674977,133.23,133.21,16.78432314]
[1744897423780,7.50501446,133.25,133.21,16.78432314]
[1744897424084,30.30674977,133.23,133.21,16.5]
[1744897424263,30.30674977,133.22,133.21,16.5]
[1744897424464,30.30674977,133.22,133.18,16.5]
[1744897424670,30.30674977,133.19,133.18,16.78432314]
[1744897424883,30.30674977,133.19,133.18,16.5]
[1744897425185,6.0418,133.23,133.16,26.0]
[1744897425186,30.30674977,133.2,133.16,56.30674977]
[1744897425492,30.30674977,133.2,133.16,72.80674977]
[1744897425989,30.30674977,133.2,133.1,7.8259]
[1744897425990,30.30674977,133.17,133.1,7.8259]
[1744897426188,30.30674977,133.15,133.1,54.31964443]
[1744897426360,30.30674977,133.15,133.1,80.31964443]
[1744897426686,30.30674977,133.13,133.1,16.5]
[1744897426876,30.30674977,133.12,133.1,16.5]
[1744897427289,88.5905,133.16,133.11,30.30674977]
[1744897427496,30.30674977,133.17,133.13,30.30674977]
[1744897427675,30.30674977,133.16,133.12,30.30674977]
[1744897427991,30.30674977,133.15,133.11,38.10313225]
[1744897428389,30.30674977,133.16,133.12,30.30674977]
[1744897429175,7.5094309,133.17,133.12,30.30674977]
[1744897429474,30.30674977,133.16,133.12,30.30674977]
[1744897429676,30.30674977,133.16,133.12,37.81866009]
[1744897430098,30.30674977,133.17,133.13,30.30674977]
[1744897430472,30.30674977,133.16,133.12,37.81866009]
[1744897430999,30.30674977,133.16,133.11,7.51234578]
[1744897431168,30.30674977,133.15,133.11,37.81909555]
[1744897431573,30.30674977,133.13,133.1,16.5]
[1744897431777,30.30674977,133.12,133.1,16.5]
[1744897432092,30.30674977,133.11,133.08,0.063]
[1744897432805,30.30674977,133.11,133.08,0.34732314]
[1744897433004,30.30674977,133.11,133.08,7.86154716]
[1744897433189,30.30674977,133.12,133.08,38.02613536]
[1744897433502,14.13149295,133.14,133.08,38.02613536]
[1744897433803,7.51041234,133.15,133.11,30.30674977]
[1744897433997,30.30674977,133.15,133.11,30.30674977]
[1744897434391,30.30674977,133.14,133.1,30.30674977]
[1744897434582,30.30674977,133.15,133.11,30.30674977]
[1744897435215,81.989,133.16,133.13,30.30674977]
[1744897435512,63.81616694,133.17,133.13,30.30674977]
[1744897435678,30.30674977,133.16,133.12,30.59107291]
[1744897436011,30.30674977,133.14,133.11,16.52]
[1744897436706,30.30674977,133.13,133.11,16.52]
[1744897436909,30.30674977,133.12,133.08,37.88364226]
[1744897437702,126.76199692,133.17,133.09,30.30674977]
[1744897437911,30.30674977,133.13,133.09,30.30674977]
[1744897438097,126.76199692,133.17,133.08,0.063]
[1744897438098,30.30674977,133.12,133.08,0.063]
[1744897438398,30.30674977,133.12,133.08,30.36974977]
[1744897439124,30.30674977,133.14,133.1,30.30674977]
[1744897439332,37.81760738,133.15,133.11,30.30674977]
[1744897439623,7.51085761,133.15,133.12,30.30674977]
[1744897439921,30.30674977,133.15,133.1,0.28432314]
[1744897440100,37.81674517,133.16,133.12,30.30674977]
[1744897440294,1.5561,133.18,133.15,30.30674977]
[1744897441520,31.86284977,133.18,133.14,30.30674977]
[1744897441703,39.37152907,133.18,133.14,30.30674977]
[1744897442221,81.989,133.19,133.15,30.30674977]
[1744897442441,112.29574977,133.19,133.15,30.30674977]
[1744897443105,81.989,133.19,133.16,30.30674977]
[1744897443925,89.49719425,133.19,133.16,30.30674977]
[1744897444303,7.50819425,133.19,133.16,30.30674977]
[1744897445508,7.50770885,133.2,133.15,30.30674977]
[1744897445719,30.30674977,133.2,133.16,30.30674977]
[1744897446040,30.30674977,133.17,133.13,37.81783548]
[1744897446404,30.30674977,133.18,133.14,30.59107291]
[1744897446612,118.81094977,133.2,133.16,30.30674977]
[1744897446939,30.30674977,133.19,133.15,30.30674977]
[1744897447605,7.50755946,133.2,133.17,30.30674977]
[1744897447833,7.50755946,133.2,133.15,7.51032669]
[1744897447834,37.81430923,133.2,133.16,30.30674977]
[1744897448404,7.50755946,133.2,133.16,30.30674977]
[1744897448636,37.81430923,133.2,133.16,30.30674977]
[1744897448927,81.989,133.22,133.18,30.30674977]
[1744897449118,30.30674977,133.21,133.17,47.09107291]
[1744897449317,30.30674977,133.19,133.17,16.5]
[1744897449825,30.30674977,133.18,133.17,16.5]
[1744897450131,30.30674977,133.18,133.13,16.5]
[1744897450304,30.30674977,133.16,133.13,16.5]
[1744897451611,37.81668295,133.16,133.13,16.5]
[1744897451810,30.30674977,133.16,133.13,16.5]
[1744897453412,37.81617582,133.17,133.13,16.5]
[1744897453611,37.81617582,133.17,133.13,46.80674977]
[1744897454037,30.30674977,133.17,133.13,54.31790277]
[1744897455122,37.81562185,133.18,133.14,30.30674977]
[1744897455323,7.50887208,133.18,133.15,30.30674977]
[1744897455723,112.29574977,133.21,133.17,30.30674977]
[1744897456045,112.29574977,133.2,133.16,30.30674977]
[1744897456528,119.80358887,133.2,133.16,30.30674977]
[1744897457456,119.80358887,133.2,133.17,30.30674977]
[1744897457457,89.4968391,133.2,133.17,30.30674977]
[1744897457617,81.989,133.2,133.17,30.30674977]
[1744897458046,112.29574977,133.2,133.17,30.30674977]
[1744897458424,83.6188,133.22,133.19,30.30674977]
[1744897459244,83.6188,133.22,133.19,37.81442341]
[1744897459441,81.989,133.22,133.19,37.81442341]
[1744897460225,0.03,133.24,133.2,30.30674977]
[1744897460423,8.2541,133.2,133.12,48.95639863]
[1744897460633,30.30674977,133.18,133.14,30.30674977]
[1744897460934,31.95794977,133.2,133.16,0.14216157]
[1744897461129,30.30674977,133.2,133.16,16.64216157]
[1744897461343,30.30674977,133.2,133.16,46.94891134]
[1744897462027,37.81445944,133.2,133.16,46.94891134]
[1744897462226,8.2541,133.23,133.19,30.30674977]
[1744897462430,1.6512,133.23,133.2,30.30674977]
[1744897462630,7.53574816,133.24,133.2,30.30674977]
[1744897462855,7.53574816,133.24,133.21,30.30674977]
[1744897464748,7.53574816,133.24,133.2,30.30674977]
[1744897464964,7.53574816,133.24,133.21,30.30674977]
[1744897465151,7.53574816,133.24,133.19,0.28432314]
[1744897465327,7.53574816,133.24,133.2,30.30674977]
[1744897465655,37.84249793,133.24,133.2,30.30674977]
[1744897466648,0.03,133.24,133.21,30.30674977]
[1744897467044,0.03,133.24,133.21,46.78674977]
[1744897467848,0.03,133.24,133.22,30.30674977]
[1744897468330,0.03,133.24,133.21,46.78674977]
[1744897468651,30.33674977,133.24,133.21,16.48]
[1744897468845,30.30674977,133.22,133.21,16.48]
[1744897469347,30.30674977,133.22,133.17,30.44891134]
[1744897469555,30.30674977,133.21,133.17,46.78674977]
[1744897469960,30.30674977,133.18,133.17,16.48]
[1744897470135,30.30674977,133.18,133.13,16.48]
[1744897470336,30.30674977,133.17,133.13,46.78674977]
[1744897470851,7.50807117,133.19,133.14,30.30674977]
[1744897471043,37.8156113,133.18,133.14,30.30674977]
[1744897471251,9.01092604,133.2,133.16,30.30674977]
[1744897471444,39.31767581,133.2,133.16,30.30674977]
[1744897471643,7.50802604,133.2,133.17,30.30674977]
[1744897472451,37.81477581,133.2,133.16,30.30674977]
[1744897472653,30.30674977,133.18,133.14,30.30674977]
[1744897472851,30.30674977,133.17,133.13,46.78674977]
[1744897473657,30.30674977,133.16,133.13,16.48]
[1744897473850,1.5548,133.18,133.13,16.48]
[1744897473851,30.30674977,133.15,133.13,16.48]
[1744897474151,7.50802604,133.2,133.15,26.0]
[1744897474352,30.30674977,133.18,133.15,26.0]
[1744897474543,30.30674977,133.19,133.15,56.30674977]
[1744897475048,37.81477581,133.2,133.16,30.30674977]
[1744897475257,7.50802604,133.2,133.16,30.30674977]
[1744897475454,30.30674977,133.17,133.13,42.48]
[1744897475751,30.30674977,133.15,133.11,37.81906628]
[1744897475938,30.30674977,133.15,133.11,80.29906628]
[1744897476256,30.30674977,133.15,133.11,54.29906628]
[1744897476851,37.81683687,133.16,133.12,56.30674977]
[1744897477356,30.30674977,133.16,133.12,56.30674977]
[1744897477544,30.30674977,133.17,133.13,30.30674977]
[1744897477938,46.58637043,133.22,133.13,30.30674977]
[1744897477939,81.989,133.18,133.16,26.0]
[1744897478765,81.989,133.18,133.15,56.30674977]
[1744897478955,112.29574977,133.18,133.15,33.51019821]
[1744897479152,112.29574977,133.18,133.15,26.0]
[1744897479340,112.29574977,133.18,133.15,33.51030082]
[1744897479741,30.30674977,133.17,133.15,26.0]
[1744897480148,30.30674977,133.17,133.15,33.5103118]
[1744897481547,112.29574977,133.18,133.15,33.5103118]
[1744897481746,81.989,133.18,133.15,63.81706157]
[1744897482144,30.30674977,133.2,133.16,30.30674977]
[1744897482344,37.81434324,133.2,133.16,30.30674977]
[1744897482546,30.30674977,133.19,133.15,63.81706157]
[1744897483679,30.30674977,133.18,133.15,33.5103118]
[1744897483884,30.30674977,133.17,133.15,26.0]
[1744897484066,30.30674977,133.17,133.13,56.30674977]
[1744897484256,30.30674977,133.17,133.13,63.81805032]
[1744897484872,7.50816573,133.19,133.14,30.30674977]
[1744897485177,18.94030163,133.18,133.14,18.94030163]
[1744897485676,18.94030163,133.17,133.13,26.0]
[1744897485873,81.989,133.18,133.14,18.94030163]
[1744897486059,81.989,133.18,133.15,18.94030163]
[1744897487775,81.989,133.18,133.15,26.45013126]